fUST/lending_fUST_20240719
["ID","MTS","AMOUNT","RATE_DAILY","PERIOD"]
[332617678,1721355044602,-500.0,0.00019178,2]
[332617679,1721355044611,-526.74671948,0.00019178,2]
[332617680,1721355044621,-500.0,0.00019178,2]
[332617681,1721355044630,-500.0,0.00019178,2]
[332617682,1721355044640,-535.23,0.00019178,2]
[332617683,1721355044648,-1274.67,0.00019178,2]
[332617684,1721355044658,-500.0,0.00019178,2]
[332617685,1721355044667,-500.0,0.00019178,2]
[332617686,1721355044676,-500.0,0.00019178,2]
[332617687,1721355044685,-500.0,0.00019178,2]
[332617688,1721355044695,-1146.43,0.00019178,2]
[332617689,1721355044704,-500.0,0.00019178,2]
[332617690,1721355044713,-1418.15,0.00019178,2]
[332617691,1721355044723,-1578.25,0.00019178,2]
[332617692,1721355044732,-500.0,0.00019178,2]
[332617693,1721355044742,-4242.41,0.00019178,2]
[332617694,1721355044751,-151.0,0.00019178,2]
[332617695,1721355044761,-500.0,0.00019178,2]
[332617696,1721355044770,-151.0,0.00019178,2]
[332617697,1721355044779,-151.0,0.00019178,2]
[332617698,1721355044789,-982.73,0.00019178,2]
[332617699,1721355044798,-151.0,0.00019178,2]
[332617700,1721355044807,-601.28420138,0.00019178,2]
[332617701,1721355044816,-500.0,0.00019178,2]
[332617702,1721355044824,-500.0,0.00019178,2]
[332617703,1721355044834,-8835.06,0.00019178,2]
[332617704,1721355044843,-972.54,0.00019178,2]
[332617705,1721355044852,-500.0,0.00019178,2]
[332617706,1721355044862,-1045.96,0.00019178,2]
[332617707,1721355044870,-2183.54,0.00019178,2]
[332617708,1721355044879,-151.0,0.00019178,2]
[332617709,1721355044888,-1183.32,0.00019178,2]
[332617710,1721355044900,-532.50207934,0.00019178,2]
[332617711,1721355044910,-500.0,0.00019178,2]
[332617712,1721355044920,-500.0,0.00019178,2]
[332617713,1721355044931,-779.3,0.00019178,2]
[332617714,1721355044941,-500.0,0.00019178,2]
[332617715,1721355044951,-500.0,0.00019178,2]
[332617716,1721355044960,-500.0,0.00019178,2]
[332617717,1721355044969,-500.0,0.00019178,2]
[332617718,1721355044980,-1886.83,0.00019178,2]
[332617719,1721355044989,-3679.41,0.00019178,2]
[332617720,1721355044998,-6487.26,0.00019178,2]
[332617721,1721355045008,-500.0,0.00019178,2]
[332617722,1721355045017,-500.0,0.00019178,2]
[332617723,1721355045026,-500.0,0.00019178,2]
[332617724,1721355045036,-500.0,0.00019178,2]
[332617725,1721355045045,-500.0,0.00019178,2]
[332617726,1721355045056,-500.0,0.00019178,2]
[332617727,1721355045065,-500.0,0.00019178,2]
[332617728,1721355045074,-500.0,0.00019178,2]
[332617729,1721355045085,-4811.86,0.00019178,2]
[332617730,1721355045095,-151.0,0.00019178,2]
[332617731,1721355045105,-151.0,0.00019178,2]
[332617732,1721355045116,-151.0,0.00019178,2]
[332617733,1721355045126,-606.30003501,0.00019178,2]
[332617734,1721355045136,-151.0,0.00019178,2]
[332617735,1721355045145,-1316.16,0.00019178,2]
[332617736,1721355045154,-313.18478137,0.00019178,2]
[332617737,1721355045164,-766.03,0.00019178,2]
[332617738,1721355045174,-503.37432755,0.00019178,2]
[332617739,1721355045184,-500.0,0.00019178,2]
[332617740,1721355045195,-500.0,0.00019178,2]
[332617741,1721355045205,-500.0,0.00019178,2]
[332617742,1721355045214,-2178.07,0.00019178,2]
[332617743,1721355045224,-500.0,0.00019178,2]
[332617744,1721355045233,-785.5,0.00019178,2]
[332617745,1721355045242,-500.0,0.00019178,2]
[332617746,1721355045252,-2137.71,0.00019178,2]
[332617747,1721355045261,-151.0,0.00019178,2]
[332617748,1721355045270,-503.88452599,0.00019178,2]
[332617749,1721355045279,-151.0,0.00019178,2]
[332617750,1721355045289,-182.864083,0.00019178,2]
[332617751,1721355045299,-539.84,0.00019178,2]
[332617752,1721355045309,-1937.07,0.00019178,2]
[332617753,1721355045318,-502.59327988,0.00019178,2]
[332617754,1721355045327,-500.0,0.00019178,2]
[332617755,1721355045336,-715.59,0.00019178,2]
[332617756,1721355045345,-151.0,0.00019178,2]
[332617757,1721355045354,-277.954837,0.00019178,2]
[332617758,1721355045364,-3727.65,0.00019178,2]
[332617759,1721355045373,-198.590027,0.00019178,2]
[332617760,1721355045383,-500.0,0.00019178,2]
[332617761,1721355045393,-151.0,0.00019178,2]
[332617762,1721355045406,-151.0,0.00019178,2]
[332617763,1721355045416,-151.0,0.00019178,2]
[332617764,1721355045426,-151.0,0.00019178,2]
[332617765,1721355045436,-503.93536182,0.00019178,2]
[332617766,1721355045446,-151.0,0.00019178,2]
[332617767,1721355045455,-151.0,0.00019178,2]
[332617768,1721355045466,-151.0,0.00019178,2]
[332617769,1721355045477,-500.0,0.00019178,2]
[332617770,1721355045488,-151.0,0.00019178,2]
[332617771,1721355045499,-341.93548628,0.00019178,2]
[332617772,1721355045508,-500.0,0.00019178,2]
[332617773,1721355045518,-837.63,0.00019178,2]
[332617774,1721355045527,-916.5,0.00019178,2]
[332617775,1721355045537,-571.3,0.00019178,2]
[332617776,1721355045546,-500.0,0.00019178,2]
[332617777,1721355045555,-500.0,0.00019178,2]
[332617778,1721355045565,-3743.35,0.00019178,2]
[332617779,1721355045574,-500.0,0.00019178,2]
[332617780,1721355045583,-357.13803418,0.00019178,2]
[332617781,1721355045592,-697.81,0.00019178,2]
[332617782,1721355045601,-9564.94,0.00019178,2]
[332617783,1721355045611,-1607.67,0.00019178,2]
[332617784,1721355045620,-500.0,0.00019178,2]
[332617785,1721355045629,-500.0,0.00019178,2]
[332617786,1721355045638,-500.0,0.00019178,2]
[332617787,1721355045648,-500.0,0.00019178,2]
[332617788,1721355045657,-500.0,0.00019178,2]
[332617790,1721355045666,-559.3,0.00019178,2]
[332617792,1721355045675,-500.0,0.00019178,2]
[332617794,1721355045684,-500.0,0.00019178,2]
[332617796,1721355045694,-2929.97,0.00019178,2]
[332617798,1721355045704,-1120.93,0.00019178,2]
[332617800,1721355045713,-526.49,0.00019178,2]
[332617802,1721355045723,-151.0,0.00019178,2]
[332617804,1721355045733,-151.0,0.00019178,2]
[332617806,1721355045743,-151.0,0.00019178,2]
[332617808,1721355045752,-151.0,0.00019178,2]
[332617810,1721355045761,-500.0,0.00019178,2]
[332617812,1721355045771,-500.0,0.00019178,2]
[332617814,1721355045780,-1194.49,0.00019178,2]
[332617815,1721355045789,-500.0,0.00019178,2]
[332617817,1721355045798,-500.0,0.00019178,2]
[332617819,1721355045810,-540.95548776,0.00019178,2]
[332617821,1721355045820,-2295.8,0.00019178,2]
[332617824,1721355045831,-20362.1,0.00019178,2]
[332617826,1721355045842,-4188.82,0.00019178,2]
[332617828,1721355045851,-500.0,0.00019178,2]
[332617830,1721355045863,-541.8,0.00019178,2]
[332617832,1721355045874,-500.0,0.00019178,2]
[332617834,1721355045884,-504.2994296,0.00019178,2]
[332617836,1721355045893,-500.0,0.00019178,2]
[332617838,1721355045903,-500.0,0.00019178,2]
[332617840,1721355045912,-500.0,0.00019178,2]
[332617842,1721355045924,-505.80893571,0.00019178,2]
[332617844,1721355045934,-500.0,0.00019178,2]
[332617846,1721355045945,-151.0,0.00019178,2]
[332617848,1721355045954,-171.404063,0.00019178,2]
[332617849,1721355045963,-151.0,0.00019178,2]
[332617851,1721355045973,-151.0,0.00019178,2]
[332617853,1721355045982,-151.0,0.00019178,2]
[332617855,1721355045992,-2290.96,0.00019178,2]
[332617857,1721355046001,-151.0,0.00019178,2]
[332617859,1721355046011,-151.0,0.00019178,2]
[332617861,1721355046021,-2400.39472791,0.00019178,2]
[332617984,1721355503716,155.09774088,0.00015954,2]
[332617985,1721355522336,548.26405605,0.0002505,120]
[332617989,1721355852696,443.89,0.00010959,2]
[332618005,1721356111518,155.26696252,0.00013283,2]
[332618006,1721356124474,152.29688559,0.00025,120]
[332618081,1721356233623,-300.0,0.00016037,2]
[332618082,1721356233634,-98.8,0.00016037,2]
[332618083,1721356233647,-201.2,0.00016037,2]
[332618084,1721356233657,-5995.60925947,0.00016038,2]
[332618085,1721356233802,-258.70000001,0.00016038,2]
[332618086,1721356233817,-13234.47883333,0.00016038,2]
[332618103,1721356238237,-22819.9578513,0.00016038,2]
[332618104,1721356238248,-42308.74594411,0.00016038,2]
[332618105,1721356238259,-154.9192016,0.00016095,2]
[332618106,1721356238269,-2543.91361461,0.00016246,2]
[332618107,1721356238279,-165.583517,0.00016635,2]
[332618108,1721356238289,-167.6776076,0.00017261,2]
[332618109,1721356238299,-24900.0,0.00017282,2]
[332618110,1721356238310,-2543.91361456,0.00017316,2]
[332618111,1721356238319,-420.0,0.00017641,2]
[332618112,1721356238330,-414.88881153,0.00017989,2]
[332618113,1721356238340,-500.0,0.00017989,2]
[332618114,1721356238351,-445.03329098,0.00017989,2]
[332618115,1721356238363,-500.0,0.00017989,2]
[332618116,1721356238373,-500.0,0.00017989,2]
[332618117,1721356238383,-500.0,0.00017989,2]
[332618118,1721356238394,-500.0,0.00017989,2]
[332618119,1721356238404,-500.0,0.00017989,2]
[332618120,1721356238414,-500.0,0.00017989,2]
[332618121,1721356238424,-300.45220606,0.00017989,2]
[332618122,1721356238435,-500.0,0.00017989,2]
[332618123,1721356238446,-500.0,0.00017989,2]
[332618124,1721356238457,-500.0,0.00017989,2]
[332618125,1721356238466,-321.96748802,0.00017989,2]
[332618126,1721356238476,-430.2803562,0.00017989,2]
[332618127,1721356238485,-500.0,0.00017989,2]
[332618128,1721356238495,-500.0,0.00017989,2]
[332618129,1721356238504,-500.0,0.00017989,2]
[332618130,1721356238514,-500.0,0.00017989,2]
[332618131,1721356238523,-500.0,0.00017989,2]
[332618132,1721356238535,-500.0,0.00017989,2]
[332618133,1721356238544,-500.0,0.00017989,2]
[332618134,1721356238553,-500.0,0.00017989,2]
[332618135,1721356238562,-500.0,0.00017989,2]
[332618136,1721356238571,-500.0,0.00017989,2]
[332618137,1721356238582,-500.0,0.00017989,2]
[332618138,1721356238592,-500.0,0.00017989,2]
[332618139,1721356238603,-500.0,0.00017989,2]
[332618140,1721356238613,-500.0,0.00017989,2]
[332618141,1721356238624,-500.0,0.00017989,2]
[332618142,1721356238633,-219.05705015,0.00017989,2]
[332618143,1721356238644,-500.0,0.00017989,2]
[332618144,1721356238656,-500.0,0.00017989,2]
[332618145,1721356238668,-500.0,0.00017989,2]
[332618146,1721356238679,-266061.246155,0.0001799,2]
[332618147,1721356238690,-4894.35237181,0.00017999,2]
[332618148,1721356238700,-100000.0,0.00018,2]
[332618149,1721356238711,-287.37045674,0.00018169,2]
[332618150,1721356238721,-4894.35237179,0.00018189,2]
[332618151,1721356238732,-6995.74191931,0.00018356,2]
[332618152,1721356238744,-4894.35237179,0.00018379,2]
[332618153,1721356238754,-2543.91361456,0.00018386,2]
[332618154,1721356238766,-4527.4092128,0.00018448,2]
[332618155,1721356238776,-2122.77005368,0.00018489,2]
[332618156,1721356238788,-287.37045674,0.00018503,2]
[332618157,1721356238800,-4894.35237179,0.00018568,2]
[332618158,1721356238811,-75218.53264946,0.00018613,2]
[332618159,1721356238824,-1705.05974779,0.00018613,2]
[332618186,1721356240268,-5511.47943235,0.00018346,2]
[332618188,1721356240279,-56107.03067975,0.00018613,2]
[332618189,1721356240290,-2137.43178425,0.00018629,2]
[332618190,1721356240302,-306.8309251,0.00018652,2]
[332618191,1721356240313,-287.37045674,0.00018653,2]
[332618192,1721356240323,-2137.43178425,0.00018657,2]
[332618193,1721356240334,-4527.4092128,0.0001866,2]
[332618194,1721356240343,-790.53994958,0.00018661,2]
[332618195,1721356240353,-2708.53736941,0.00018679,2]
[332618196,1721356240364,-1500.0,0.00018679,2]
[332618197,1721356240374,-2708.53736941,0.00018679,2]
[332618198,1721356240386,-1027.82946815,0.00018696,2]
[332618199,1721356240398,-946.12754339,0.00018696,2]
[332618200,1721356240409,-567.73879262,0.00018701,2]
[332618201,1721356240419,-993.98027656,0.00018701,2]
[332618202,1721356240430,-773.05238989,0.0001872,2]
[332618203,1721356240441,-133030.623077,0.00018736,2]
[332618204,1721356240451,-4894.35237179,0.00018758,2]
[332618205,1721356240461,-309.26121486,0.00018786,2]
[332618206,1721356240471,-215.78644239,0.00018786,2]
[332618207,1721356240481,-251.88019181,0.00018799,2]
[332618208,1721356240491,-154.79103211,0.00018799,2]
[332618209,1721356240501,-159.84101534,0.00018799,2]
[332618210,1721356240512,-342.45848981,0.00018825,2]
[332618211,1721356240522,-155.45305119,0.00018825,2]
[332618212,1721356240531,-539.01866729,0.00018825,2]
[332618213,1721356240542,-526.68531291,0.00018845,2]
[332618214,1721356240553,-568.49712228,0.00018845,2]
[332618215,1721356240564,-151.0,0.00018869,2]
[332618216,1721356240573,-151.0,0.00018869,2]
[332618217,1721356240582,-151.0,0.00018869,2]
[332618218,1721356240593,-252.454717,0.00018869,2]
[332618219,1721356240603,-151.0,0.00018869,2]
[332618220,1721356240615,-151.0,0.00018869,2]
[332618221,1721356240626,-151.621417,0.00018869,2]
[332618222,1721356240637,-151.0,0.00018869,2]
[332618223,1721356240649,-62364.48505938,0.00018869,2]
[332618224,1721356240659,-2000.0,0.00018869,2]
[332618225,1721356240671,-151.1351012,0.00018871,2]
[332618226,1721356240681,-878.04783051,0.00018909,2]
[332618227,1721356240691,-878.04783051,0.00018909,2]
[332618228,1721356240700,-320.11222392,0.0001891,2]
[332618229,1721356240709,-240.45271023,0.0001891,2]
[332618230,1721356240719,-240.45271023,0.0001891,2]
[332618231,1721356240730,-154.79103211,0.0001891,2]
[332618232,1721356240740,-395.81607683,0.0001891,2]
[332618233,1721356240751,-287.74447351,0.00018921,2]
[332618234,1721356240763,-156.58671833,0.00018921,2]
[332618235,1721356240773,-154.79103211,0.00018945,2]
[332618236,1721356240785,-492.04095382,0.0001895,2]
[332618237,1721356240796,-846.74633042,0.0001895,2]
[332618238,1721356240810,-506.67785718,0.00018969,2]
[332618239,1721356240820,-156.68771632,0.00018969,2]
[332618240,1721356240831,-156.37350607,0.00018976,2]
[332618241,1721356240842,-402.73067489,0.00018979,2]
[332618242,1721356240852,-402.73067489,0.00018979,2]
[332618243,1721356240863,-201.90994671,0.00018979,2]
[332618244,1721356240874,-1089.25,0.00019,2]
[332618245,1721356240884,-151.0,0.00019,2]
[332618246,1721356240895,-287.37045677,0.00019044,2]
[332618247,1721356240907,-4527.4092128,0.00019084,2]
[332618248,1721356241164,-21281.21747444,0.00019101,2]
[332618249,1721356241176,-199.42799156,0.00019102,2]
[332618250,1721356241186,-5480.26395168,0.00019102,2]
[332618251,1721356241195,-17283.56369141,0.00019102,2]
[332618252,1721356241204,-427.7,0.0001915,2]
[332618253,1721356241214,-2843.17391,0.00019167,2]
[332618254,1721356241223,-309.37841004,0.00019167,2]
[332618255,1721356241232,-1659.74681185,0.00019167,2]
[332618256,1721356241241,-526.15554242,0.00019177,4]
[332618257,1721356241250,-599.9748975,0.00019177,2]
[332618258,1721356241260,-500.0,0.00019178,2]
[332618259,1721356241269,-500.0,0.00019178,2]
[332618260,1721356241278,-500.0,0.00019178,2]
[332618261,1721356241287,-471.67904458,0.00019178,2]
[332618262,1721356241297,-500.0,0.00019178,2]
[332618263,1721356241307,-504.97797797,0.00019178,2]
[332618264,1721356241317,-500.0,0.00019178,2]
[332618265,1721356241327,-500.0,0.00019178,2]
[332618266,1721356241336,-1087.07,0.00019178,2]
[332618267,1721356241346,-500.0,0.00019178,2]
[332618268,1721356241358,-500.0,0.00019178,2]
[332618269,1721356241368,-500.0,0.00019178,2]
[332618270,1721356241378,-501.88413502,0.00019178,2]
[332618271,1721356241387,-500.0,0.00019178,2]
[332618272,1721356241397,-500.0,0.00019178,2]
[332618273,1721356241406,-500.0,0.00019178,2]
[332618274,1721356241415,-500.0,0.00019178,2]
[332618275,1721356241424,-500.0,0.00019178,2]
[332618276,1721356241434,-500.0,0.00019178,2]
[332618277,1721356241443,-502.2196872,0.00019178,2]
[332618278,1721356241452,-668.43,0.00019178,2]
[332618279,1721356241462,-500.0,0.00019178,2]
[332618280,1721356241472,-417.77535033,0.00019178,2]
[332618281,1721356241483,-500.0,0.00019178,2]
[332618282,1721356241492,-500.0,0.00019178,2]
[332618283,1721356241503,-500.0,0.00019178,2]
[332618284,1721356241513,-500.0,0.00019178,2]
[332618285,1721356241526,-500.0,0.00019178,2]
[332618286,1721356241536,-500.0,0.00019178,2]
[332618287,1721356241547,-500.0,0.00019178,2]
[332618288,1721356241557,-500.0,0.00019178,2]
[332618289,1721356241568,-558.77941315,0.00019178,2]
[332618290,1721356241577,-500.0,0.00019178,2]
[332618291,1721356241586,-500.0,0.00019178,2]
[332618292,1721356241595,-501.60639451,0.00019178,2]
[332618293,1721356241606,-500.0,0.00019178,2]
[332618294,1721356241615,-500.0,0.00019178,2]
[332618295,1721356241624,-469.18571943,0.00019178,2]
[332618296,1721356241634,-503.44195883,0.00019178,2]
[332618297,1721356241645,-500.0,0.00019178,2]
[332618298,1721356241654,-500.0,0.00019178,2]
[332618299,1721356241663,-500.0,0.00019178,2]
[332618300,1721356241672,-500.0,0.00019178,2]
[332618301,1721356241682,-293.55486371,0.00019178,2]
[332618302,1721356241691,-500.0,0.00019178,2]
[332618303,1721356241700,-500.0,0.00019178,2]
[332618304,1721356241709,-500.0,0.00019178,2]
[332618305,1721356241719,-500.0,0.00019178,2]
[332618306,1721356241734,-501.81852784,0.00019178,2]
[332618307,1721356241743,-500.0,0.00019178,2]
[332618308,1721356241753,-500.0,0.00019178,2]
[332618309,1721356241763,-151.0,0.00019178,2]
[332618310,1721356241773,-151.0,0.00019178,2]
[332618311,1721356241783,-500.0,0.00019178,2]
[332618312,1721356241792,-500.0,0.00019178,2]
[332618313,1721356241801,-500.0,0.00019178,2]
[332618314,1721356241813,-500.0,0.00019178,2]
[332618315,1721356241823,-500.0,0.00019178,2]
[332618316,1721356241833,-500.0,0.00019178,2]
[332618317,1721356241843,-500.0,0.00019178,2]
[332618318,1721356241852,-500.0,0.00019178,2]
[332618319,1721356241862,-500.0,0.00019178,2]
[332618320,1721356241871,-1180.25,0.00019178,2]
[332618321,1721356241881,-500.0,0.00019178,2]
[332618322,1721356241892,-521.48342993,0.00019178,2]
[332618323,1721356241902,-500.0,0.00019178,2]
[332618324,1721356241912,-500.0,0.00019178,2]
[332618325,1721356241922,-503.87023425,0.00019178,2]
[332618326,1721356241932,-500.0,0.00019178,2]
[332618327,1721356241942,-568.18428255,0.00019178,2]
[332618328,1721356241952,-500.0,0.00019178,2]
[332618329,1721356241963,-500.0,0.00019178,2]
[332618330,1721356241973,-500.0,0.00019178,2]
[332618331,1721356241982,-500.0,0.00019178,2]
[332618332,1721356241992,-500.0,0.00019178,2]
[332618333,1721356242001,-500.0,0.00019178,2]
[332618334,1721356242011,-500.0,0.00019178,2]
[332618335,1721356242020,-502.52489456,0.00019178,2]
[332618336,1721356242030,-520.61443143,0.00019178,2]
[332618337,1721356242040,-502.66559165,0.00019178,2]
[332618338,1721356242049,-500.0,0.00019178,2]
[332618339,1721356242059,-508.95142039,0.00019178,2]
[332618340,1721356242068,-503.31032878,0.00019178,2]
[332618341,1721356242078,-500.0,0.00019178,2]
[332618342,1721356242087,-500.0,0.00019178,2]
[332618343,1721356242097,-500.0,0.00019178,2]
[332618344,1721356242106,-500.0,0.00019178,2]
[332618345,1721356242115,-500.0,0.00019178,2]
[332618346,1721356242125,-500.0,0.00019178,2]
[332618347,1721356242135,-502.77171969,0.00019178,2]
[332618348,1721356242146,-500.0,0.00019178,2]
[332618349,1721356242155,-500.0,0.00019178,2]
[332618350,1721356242164,-500.0,0.00019178,2]
[332618351,1721356242173,-500.0,0.00019178,2]
[332618352,1721356242183,-500.0,0.00019178,2]
[332618353,1721356242191,-905.58,0.00019178,2]
[332618354,1721356242201,-502.23777213,0.00019178,2]
[332618355,1721356242210,-507.73783479,0.00019178,2]
[332618356,1721356242220,-467.77082462,0.00019178,2]
[332618357,1721356242230,-502.67561762,0.00019178,2]
[332618358,1721356242239,-500.0,0.00019178,2]
[332618359,1721356242248,-200.0,0.00019178,2]
[332618360,1721356242257,-500.0,0.00019178,2]
[332618361,1721356242267,-500.0,0.00019178,2]
[332618362,1721356242276,-569.73,0.00019178,2]
[332618363,1721356242286,-500.0,0.00019178,2]
[332618364,1721356242295,-500.0,0.00019178,2]
[332618365,1721356242304,-500.0,0.00019178,2]
[332618366,1721356242314,-500.0,0.00019178,2]
[332618367,1721356242323,-500.0,0.00019178,2]
[332618368,1721356242333,-500.0,0.00019178,2]
[332618369,1721356242342,-500.0,0.00019178,2]
[332618370,1721356242352,-1259.25,0.00019178,2]
[332618371,1721356242361,-500.0,0.00019178,2]
[332618372,1721356242370,-526.74671948,0.00019178,2]
[332618373,1721356242380,-556.06,0.00019178,2]
[332618374,1721356242390,-500.0,0.00019178,2]
[332618375,1721356242399,-500.0,0.00019178,2]
[332618376,1721356242408,-500.0,0.00019178,2]
[332618377,1721356242418,-153.077561,0.00019178,2]
[332618378,1721356242427,-1006.3,0.00019178,2]
[332618379,1721356242437,-736.55,0.00019178,2]
[332618380,1721356242446,-500.0,0.00019178,2]
[332618381,1721356242456,-500.0,0.00019178,2]
[332618382,1721356242465,-500.0,0.00019178,2]
[332618383,1721356242474,-500.0,0.00019178,2]
[332618384,1721356242483,-500.0,0.00019178,2]
[332618385,1721356242493,-2813.54,0.00019178,2]
[332618386,1721356242502,-500.0,0.00019178,2]
[332618387,1721356242511,-2582.41,0.00019178,2]
[332618388,1721356242521,-502.41605619,0.00019178,2]
[332618389,1721356242531,-500.0,0.00019178,2]
[332618390,1721356242540,-500.0,0.00019178,2]
[332618392,1721356242550,-500.0,0.00019178,2]
[332618394,1721356242560,-500.0,0.00019178,2]
[332618396,1721356242569,-500.0,0.00019178,2]
[332618398,1721356242579,-1938.94,0.00019178,2]
[332618400,1721356242589,-500.0,0.00019178,2]
[332618402,1721356242599,-500.0,0.00019178,2]
[332618404,1721356242610,-500.0,0.00019178,2]
[332618405,1721356242619,-509.51514965,0.00019178,2]
[332618406,1721356242628,-686.55,0.00019178,2]
[332618407,1721356242637,-601.28420138,0.00019178,2]
[332618408,1721356242648,-505.30920347,0.00019178,2]
[332618409,1721356242658,-500.0,0.00019178,2]
[332618410,1721356242667,-500.0,0.00019178,2]
[332618412,1721356242676,-500.0,0.00019178,2]
[332618414,1721356242686,-1281.55,0.00019178,2]
[332618416,1721356242696,-500.0,0.00019178,2]
[332618418,1721356242706,-364.8181918,0.00019178,2]
[332618421,1721356242716,-500.0,0.00019178,2]
[332618425,1721356242727,-500.0,0.00019178,2]
[332618428,1721356242736,-500.0,0.00019178,2]
[332618432,1721356242746,-517.68151179,0.00019178,2]
[332618435,1721356242755,-500.0,0.00019178,2]
[332618438,1721356242766,-502.54723003,0.00019178,2]
[332618442,1721356242776,-500.0,0.00019178,2]
[332618445,1721356242785,-1418.15,0.00019178,2]
[332618448,1721356242795,-500.0,0.00019178,2]
[332618451,1721356242805,-500.0,0.00019178,2]
[332618454,1721356242815,-500.0,0.00019178,2]
[332618457,1721356242825,-500.0,0.00019178,2]
[332618460,1721356242834,-3362.25,0.00019178,2]
[332618462,1721356242844,-500.0,0.00019178,2]
[332618464,1721356242855,-3279.15,0.00019178,2]
[332618467,1721356242864,-502.59327988,0.00019178,2]
[332618469,1721356242874,-500.0,0.00019178,2]
[332618471,1721356242884,-500.0,0.00019178,2]
[332618473,1721356242894,-530.29,0.00019178,2]
[332618475,1721356242904,-532.50207934,0.00019178,2]
[332618477,1721356242914,-500.0,0.00019178,2]
[332618479,1721356242923,-505.69005528,0.00019178,2]
[332618482,1721356242933,-500.0,0.00019178,2]
[332618485,1721356242944,-500.0,0.00019178,2]
[332618489,1721356242955,-500.0,0.00019178,2]
[332618492,1721356242964,-1260.3,0.00019178,2]
[332618495,1721356242974,-850.13,0.00019178,2]
[332618498,1721356242984,-1031.85,0.00019178,2]
[332618501,1721356242994,-500.0,0.00019178,2]
[332618503,1721356243003,-500.0,0.00019178,2]
[332618505,1721356243013,-500.0,0.00019178,2]
[332618507,1721356243022,-154.643178,0.00019178,2]
[332618509,1721356243032,-500.0,0.00019178,2]
[332618510,1721356243042,-503.37432755,0.00019178,2]
[332618511,1721356243052,-672.84,0.00019178,2]
[332618512,1721356243061,-341.93548628,0.00019178,2]
[332618513,1721356243071,-504.95620038,0.00019178,2]
[332618514,1721356243080,-500.0,0.00019178,2]
[332618515,1721356243090,-779.3,0.00019178,2]
[332618516,1721356243099,-500.0,0.00019178,2]
[332618517,1721356243108,-500.0,0.00019178,2]
[332618518,1721356243118,-1045.96,0.00019178,2]
[332618519,1721356243127,-500.0,0.00019178,2]
[332618520,1721356243138,-500.0,0.00019178,2]
[332618521,1721356243147,-500.0,0.00019178,2]
[332618522,1721356243157,-501.43,0.00019178,2]
[332618523,1721356243166,-785.5,0.00019178,2]
[332618524,1721356243175,-500.0,0.00019178,2]
[332618525,1721356243185,-500.0,0.00019178,2]
[332618526,1721356243195,-1886.83,0.00019178,2]
[332618527,1721356243205,-313.18478137,0.00019178,2]
[332618528,1721356243214,-1187.9,0.00019178,2]
[332618529,1721356243224,-500.0,0.00019178,2]
[332618530,1721356243233,-500.0,0.00019178,2]
[332618531,1721356243242,-500.0,0.00019178,2]
[332618532,1721356243252,-151.0,0.00019178,2]
[332618533,1721356243262,-151.0,0.00019178,2]
[332618534,1721356243271,-151.0,0.00019178,2]
[332618535,1721356243280,-1316.16,0.00019178,2]
[332618536,1721356243290,-500.0,0.00019178,2]
[332618537,1721356243300,-500.0,0.00019178,2]
[332618538,1721356243309,-501.62309351,0.00019178,2]
[332618539,1721356243319,-1403.75,0.00019178,2]